bitfinex/quotes_SOLUSD_20240827
["timestamp","ask_amount","ask_price","bid_price","bid_amount"]
[1724768283162,6.472,154.51,154.45,16.6484]
[1724768283745,32.17943834,154.56,154.45,16.6484]
[1724768283944,6.4703,154.56,154.46,1.29456373]
[1724768284161,6.4703,154.56,154.46,66.29456373]
[1724768284368,6.4697,154.57,154.46,53.47400207]
[1724768284548,6.4697,154.57,154.48,32.17943834]
[1724768284741,17.016349,154.59,154.49,45.0]
[1724768284942,6.4703,154.56,154.47,6.1251]
[1724768285146,17.016349,154.59,154.47,6.1251]
[1724768285147,6.4696,154.57,154.47,6.1251]
[1724768285381,6.4692,154.58,154.48,46.29441117]
[1724768285544,6.4703,154.56,154.48,45.0]
[1724768285754,6.4694,154.58,154.48,45.0]
[1724768286073,6.4696,154.57,154.48,45.0]
[1724768286579,6.47,154.56,154.48,45.0]
[1724768286749,6.47,154.56,154.47,6.1251]
[1724768287075,0.843649,154.59,154.47,6.1251]
[1724768287372,6.47,154.56,154.48,45.0]
[1724768287751,45.843649,154.59,154.49,1.29434674]
[1724768287752,6.4696,154.57,154.49,1.29434674]
[1724768288164,0.843649,154.59,154.49,1.29434457]
[1724768288367,0.843649,154.59,154.51,16.6351]
[1724768288575,0.843649,154.59,154.52,39.76176884]
[1724768288757,0.843649,154.59,154.53,45.0]
[1724768288958,0.843649,154.59,154.54,1.29393223]
[1724768289170,0.843649,154.59,154.55,1.29393222]
[1724768290179,0.843649,154.59,154.54,1.2939305]
[1724768290384,0.843649,154.59,154.55,1.2939305]
[1724768290754,0.843649,154.59,154.56,32.17943834]
[1724768290986,0.843649,154.59,154.58,15.8992]
[1724768291456,0.843649,154.59,154.58,17.19289514]
[1724768292558,0.843649,154.59,154.58,15.8992]
[1724768292772,0.843649,154.59,154.58,17.19293861]
[1724768293281,0.843649,154.59,154.58,15.8992]
[1724768293463,0.843649,154.59,154.58,17.19293708]
[1724768294078,0.843649,154.59,154.58,17.19279979]
[1724768294255,0.843649,154.59,154.58,60.8992]
[1724768294655,0.843649,154.59,154.58,15.8992]
[1724768297262,0.843649,154.59,154.57,6.5954]
[1724768297771,0.843649,154.59,154.58,1.29369977]
[1724768298779,0.843649,154.59,154.58,45.0]
[1724768299152,0.843649,154.59,154.58,46.29354593]
[1724768299355,6.4658,154.66,154.58,78.47298427]
[1724768299667,382.2,154.72,154.6,32.17943834]
[1724768299668,414.37943834,154.72,154.6,32.17943834]
[1724768299874,6.4642,154.7,154.61,46.29320549]
[1724768300072,6.4642,154.7,154.62,32.17943834]
[1724768300275,6.4642,154.7,154.63,46.29313922]
[1724768300479,388.6635,154.72,154.64,6.637]
[1724768300682,1.12022574,154.74,154.65,1.29299595]
[1724768300855,6.4624,154.74,154.65,46.29299595]
[1724768301053,298.31703834,154.78,154.66,15.1063]
[1724768301054,7.305649,154.75,154.66,15.1063]
[1724768301255,7.305649,154.75,154.67,46.2926972]
[1724768301488,7.305649,154.75,154.68,1.29269699]
[1724768301785,0.843649,154.75,154.69,1.29269451]
[1724768302181,0.843649,154.75,154.69,46.29269451]
[1724768302693,0.843649,154.75,154.7,6.652]
[1724768303471,0.843649,154.75,154.71,1.29250721]
[1724768304092,0.843649,154.75,154.71,1.29250317]
[1724768304257,0.843649,154.75,154.74,32.17943834]
[1724768304452,0.843649,154.75,154.74,77.17943834]
[1724768304657,32.17943834,154.79,154.71,6.1831]
[1724768304874,5.44231504,154.84,154.71,6.1831]
[1724768305057,6.4611,154.78,154.71,6.1831]
[1724768305257,6.4614,154.77,154.71,6.1831]
[1724768305778,6.4612,154.77,154.71,6.1831]
[1724768305975,6.4608,154.78,154.71,6.1831]
[1724768306479,6.4603,154.79,154.71,6.1831]
[1724768307085,6.4603,154.79,154.72,45.0]
[1724768307298,6.46,154.8,154.73,1.29243886]
[1724768307473,32.17943834,154.86,154.74,1.29218952]
[1724768307669,16.1427,154.87,154.75,15.2523]
[1724768307876,16.1427,154.87,154.77,6.4067]
[1724768308092,16.1427,154.87,154.77,7.6987478]
[1724768308672,6.4583,154.84,154.77,6.4067]
[1724768308876,6.5617698,154.89,154.78,1.29200411]
[1724768309093,49.16258734,154.9,154.77,6.4067]
[1724768309303,32.17943834,154.88,154.77,6.4067]
[1724768309476,6.4583,154.84,154.77,6.4067]
[1724768311174,6.4578,154.86,154.78,45.0]
[1724768311679,6.4591,154.82,154.77,6.4067]
[1724768311882,32.17943834,154.87,154.77,6.4067]
[1724768312586,6.459,154.83,154.77,6.4067]
[1724768312792,6.4591,154.82,154.77,6.4067]
[1724768312980,6.4587,154.83,154.77,6.4067]
[1724768313177,6.4583,154.84,154.77,6.4067]
[1724768313380,6.4577,154.86,154.78,1.29195775]
[1724768313601,6.4577,154.86,154.78,66.29195775]
[1724768313798,6.458,154.85,154.78,65.0]
[1724768314003,32.17943834,154.86,154.78,65.0]
[1724768314204,6.4579,154.85,154.78,20.0]
[1724768314389,38.63683834,154.86,154.78,20.0]
[1724768315209,38.63683834,154.86,154.79,45.0]
[1724768315709,6.4579,154.85,154.78,20.0]
[1724768315899,38.63683834,154.86,154.78,20.0]
[1724768316104,6.4578,154.85,154.79,45.0]
[1724768316412,38.63693834,154.86,154.78,20.0]
[1724768316610,32.17943834,154.86,154.78,21.29191747]
[1724768316906,16.983849,154.9,154.78,21.29191747]
[1724768316907,32.17943834,154.88,154.78,21.29191747]
[1724768317088,6.4566,154.88,154.79,1.29182454]
[1724768317290,7.299749,154.9,154.79,1.29182454]
[1724768317508,6.4564,154.89,154.79,1.29182454]
[1724768317809,0.843649,154.9,154.81,16.3766]
[1724768317982,0.843649,154.9,154.82,72.5079365]
[1724768318183,0.843649,154.9,154.84,38.39603834]
[1724768318387,0.843649,154.9,154.86,32.17943834]
[1724768318580,0.843649,154.9,154.87,1.29099399]
[1724768318785,0.843649,154.9,154.87,46.29099399]
[1724768319013,0.843649,154.9,154.87,45.0]
[1724768319184,0.843649,154.9,154.84,6.2166]
[1724768319605,0.843649,154.9,154.85,1.29146316]
[1724768319793,0.843649,154.9,154.85,46.29146316]
[1724768320102,0.843649,154.9,154.86,1.29111964]
[1724768320404,0.843649,154.9,154.86,1.29118754]
[1724768320609,0.843649,154.9,154.85,45.0]
[1724768321416,0.843649,154.9,154.86,1.29112928]
[1724768321708,0.843649,154.9,154.86,21.29112928]
[1724768321883,0.843649,154.9,154.87,45.0]
[1724768322080,0.843649,154.9,154.88,1.29083635]
[1724768322304,6.4524,154.98,154.9,6.3197]
[1724768322492,6.4524,154.98,154.91,46.29070425]
[1724768322901,6.4529,154.97,154.91,45.0]
[1724768323385,32.17943834,155.0,154.92,1.29078189]
[1724768323585,6.4529,154.97,154.91,46.29067083]
[1724768323893,6.4532,154.96,154.9,6.3197]
[1724768324302,6.4532,154.96,154.9,7.61064428]
[1724768324710,6.453,154.97,154.91,45.0]
[1724768325011,6.4537,154.95,154.9,7.61062989]
[1724768325308,16.1291,155.0,154.9,7.61062989]
[1724768325503,32.17943834,154.99,154.9,6.3197]
[1724768325701,6.4533,154.96,154.9,7.61065243]
[1724768325916,16.1291,155.0,154.88,20.0]
[1724768326123,6.4541,154.94,154.89,1.29107916]
[1724768326410,6.4546,154.93,154.87,6.0106]
[1724768326883,32.17943834,154.93,154.87,6.0106]
[1724768327088,32.17943834,154.93,154.83,6.0106]
[1724768327289,6.4562,154.89,154.83,6.0106]
[1724768327700,32.17943834,154.93,154.84,1.29139685]
[1724768327917,6.4557,154.91,154.83,6.0106]
[1724768328117,6.4553,154.91,154.83,6.0106]
[1724768328606,6.4549,154.92,154.84,1.29132129]
[1724768328795,6.4545,154.93,154.84,20.0]
[1724768329002,6.455,154.92,154.84,20.0]
[1724768329396,6.455,154.92,154.83,6.0106]
[1724768329593,6.455,154.92,154.85,1.29116229]
[1724768329817,6.455,154.92,154.85,46.29116229]
[1724768330118,6.4545,154.94,154.85,46.29116229]
[1724768330618,6.4546,154.93,154.85,46.29116229]
[1724768331390,6.455,154.92,154.85,46.29116229]
[1724768331619,6.455,154.92,154.85,45.0]
[1724768331918,6.4545,154.93,154.85,45.0]
[1724768332326,6.4545,154.93,154.86,1.29119636]
[1724768332492,6.4541,154.94,154.86,1.29119636]
[1724768332827,32.17943834,154.89,154.83,6.0106]
[1724768332995,32.17943834,154.88,154.83,6.0106]
[1724768333319,6.457,154.87,154.83,6.0106]
[1724768333822,6.4574,154.86,154.83,6.0106]
[1724768333995,6.457,154.87,154.83,6.0106]
[1724768334406,6.07799175,154.93,154.84,1.29158499]
[1724768334616,6.4556,154.91,154.84,1.29158499]
[1724768335316,6.4556,154.91,154.84,46.29158499]
[1724768335522,6.4558,154.9,154.84,45.0]
[1724768336118,6.4558,154.9,154.83,6.0106]
[1724768336119,6.4561,154.9,154.83,6.0106]
[1724768336321,38.63473834,154.92,154.84,1.29139528]
[1724768336822,38.63473834,154.92,154.83,6.0106]
[1724768336823,6.4553,154.91,154.83,6.0106]
[1724768337619,6.4553,154.91,154.84,45.0]
[1724768338127,32.17943834,154.9,154.83,6.0106]
[1724768338425,6.4563,154.89,154.83,6.0106]
[1724768338622,38.63533834,154.9,154.83,6.0106]
[1724768338821,38.63533834,154.9,154.84,1.29152931]
[1724768339132,38.63533834,154.9,154.83,6.0106]
[1724768339318,6.4562,154.89,154.83,6.0106]
[1724768339728,38.63523834,154.9,154.83,6.0106]
[1724768339903,6.4562,154.89,154.83,6.0106]
[1724768340707,6.4567,154.88,154.83,6.0106]
[1724768340904,6.4574,154.86,154.8,16.3075]
[1724768341106,32.17943834,154.85,154.79,6.6644]
[1724768341314,6.4583,154.84,154.79,6.6644]
[1724768342006,6.4601,154.8,154.76,16.5133]
[1724768342321,32.17943834,154.83,154.76,16.5133]
[1724768342500,6.4597,154.81,154.76,16.5133]
[1724768342700,32.17943834,154.83,154.75,6.2392]
[1724768342701,6.4607,154.78,154.75,6.2392]
[1724768342913,6.4612,154.77,154.75,6.2392]
[1724768343112,6.4608,154.78,154.75,6.2392]
[1724768343318,6.4603,154.8,154.75,6.2392]
[1724768343520,32.17943834,154.81,154.75,6.2392]
[1724768343905,6.4616,154.76,154.71,6.3705]
[1724768344107,32.17943834,154.81,154.72,1.29250461]
[1724768344311,6.4595,154.81,154.72,1.29250461]
[1724768344537,6.4591,154.82,154.72,1.29226267]
[1724768344709,6.4603,154.8,154.71,6.3705]
[1724768344905,6.4604,154.79,154.71,6.3705]
[1724768345320,6.46,154.8,154.72,20.0]
[1724768345505,6.46,154.8,154.73,1.2923783]
[1724768345707,6.4595,154.81,154.74,1.29223994]
[1724768345915,6.4595,154.81,154.72,20.0]
[1724768346134,6.46,154.8,154.72,20.0]
[1724768346334,6.4605,154.79,154.72,20.0]
[1724768347065,32.17943834,154.81,154.72,20.0]
[1724768347334,6.4608,154.78,154.71,6.3705]
[1724768348438,6.4603,154.79,154.71,6.3705]
[1724768348812,6.4603,154.79,154.72,1.29249355]
[1724768349130,32.17943834,154.84,154.72,46.29236783]
[1724768349436,32.17943834,154.84,154.72,66.29236783]
[1724768349648,6.4579,154.85,154.72,98.47180617]
[1724768350235,6.4566,154.88,154.76,32.17943834]
[1724768350538,32.17943834,154.91,154.78,54.64663834]
[1724768350741,32.17943834,154.89,154.79,65.0]
[1724768351150,6.4569,154.88,154.79,65.0]
[1724768351321,32.17943834,154.87,154.79,45.0]
[1724768351648,32.17943834,154.85,154.78,22.4672]
[1724768352130,32.17943834,154.83,154.78,6.5544]
[1724768352519,32.17943834,154.83,154.74,23.0346]
[1724768352732,6.4594,154.82,154.74,23.0346]
[1724768353033,32.17943834,154.81,154.74,6.5028]
[1724768353223,32.17943834,154.76,154.69,22.6912]
[1724768353422,45.0,154.8,154.69,22.6912]
[1724768353423,6.4623,154.75,154.69,22.6912]
[1724768353651,32.17943834,154.74,154.69,22.6912]
[1724768354021,6.4604,154.79,154.7,1.29281824]
[1724768354572,382.2,154.8,154.7,1.29281824]
[1724768355027,6.458,154.85,154.72,32.17943834]
[1724768355238,6.4583,154.84,154.73,66.29199929]
[1724768355545,32.17943834,154.82,154.73,65.0]
[1724768355844,32.17943834,154.86,154.74,1.29226356]
[1724768356014,6.4578,154.85,154.74,1.29226356]
[1724768356417,32.17943834,154.86,154.75,6.0327]
[1724768356640,32.17943834,154.86,154.76,46.29181546]
[1724768356826,6.4574,154.86,154.77,1.29181547]
[1724768357036,6.457,154.87,154.77,1.29181547]
[1724768357225,38.63693834,154.86,154.77,1.29181547]
[1724768357545,32.17943834,154.86,154.78,1.29196669]
[1724768357747,6.457,154.88,154.78,1.29196669]
[1724768357748,32.17943834,154.88,154.78,1.29196669]
[1724768358316,32.17943834,154.84,154.75,6.0327]
[1724768358737,32.17943834,154.86,154.76,1.29215177]
[1724768358944,6.4573,154.87,154.76,1.29215177]
[1724768359743,6.4574,154.86,154.76,66.29215177]
[1724768360350,6.4578,154.85,154.76,66.29215177]
[1724768360723,6.4578,154.85,154.76,65.0]
[1724768361429,414.37943834,154.9,154.78,16.3462]
[1724768361645,382.2,154.9,154.79,46.29170374]
[1724768361946,32.17943834,154.92,154.79,66.29170374]
[1724768362244,32.17943834,154.92,154.79,65.0]
[1724768362828,6.4566,154.88,154.79,65.0]
[1724768363149,32.17943834,154.87,154.78,16.3462]
[1724768363439,38.63733834,154.85,154.78,16.3462]
[1724768363642,6.4592,154.82,154.78,16.3462]
[1724768363842,32.17943834,154.85,154.75,6.0327]
[1724768364022,38.63833834,154.83,154.75,6.0327]
[1724768364221,6.4589,154.83,154.76,1.29207031]
[1724768364572,16.1434,154.87,154.75,6.0327]
[1724768364573,32.17943834,154.82,154.75,6.0327]
[1724768364849,6.4598,154.81,154.75,7.3249731]
[1724768365040,6.4591,154.82,154.75,7.3249731]
[1724768365242,32.17943834,154.84,154.75,7.3249731]
[1724768365243,6.4587,154.83,154.75,6.0327]
[1724768365424,6.4574,154.87,154.76,1.29195959]
[1724768365746,32.17943834,154.9,154.76,32.17943834]
[1724768365967,32.17943834,154.9,154.77,65.0]
[1724768366147,6.4566,154.88,154.77,65.0]
[1724768366655,6.457,154.87,154.77,65.0]
[1724768367064,6.4577,154.86,154.77,65.0]
[1724768367461,6.4556,154.91,154.79,16.1242]
[1724768367660,6.4558,154.9,154.8,66.29146767]
[1724768368365,6.4558,154.9,154.8,65.0]
[1724768368742,6.4562,154.89,154.8,65.0]
[1724768368952,6.4566,154.88,154.8,65.0]
[1724768369148,32.17943834,154.88,154.79,16.1242]
[1724768369451,6.4579,154.85,154.79,16.1242]
[1724768369865,6.4583,154.84,154.79,16.1242]
[1724768370247,6.4578,154.85,154.79,16.1242]
[1724768370453,32.17943834,154.88,154.79,17.41609956]
[1724768370745,6.4591,154.83,154.79,16.1242]
[1724768370948,6.4591,154.83,154.78,6.1105]
[1724768371144,32.17943834,154.86,154.78,6.1105]
[1724768371362,6.4582,154.85,154.78,6.1105]
[1724768371552,32.17943834,154.88,154.78,6.1105]
[1724768371750,32.17943834,154.86,154.78,6.1105]
[1724768371955,6.4587,154.83,154.78,6.1105]
[1724768372555,6.4582,154.85,154.78,6.1105]
[1724768372865,6.4592,154.82,154.78,6.1105]
[1724768373075,16.1412,154.89,154.78,6.1105]
[1724768373076,32.17943834,154.84,154.78,6.1105]
[1724768373246,16.1433,154.87,154.75,15.4552]
[1724768373247,32.17943834,154.82,154.75,15.4552]
[1724768373749,6.4592,154.82,154.75,16.74746787]
[1724768373954,6.4596,154.81,154.75,15.4552]
[1724768374962,6.4604,154.79,154.75,15.4552]
[1724768375374,6.46,154.8,154.75,15.4552]
[1724768376660,6.4605,154.79,154.74,6.5448]
[1724768376966,32.17943834,154.8,154.74,6.5448]
[1724768377169,6.462,154.76,154.74,6.5448]
[1724768377872,6.462,154.76,154.71,15.7879]
[1724768378653,414.37943834,154.83,154.71,15.7879]
[1724768378845,32.17943834,154.83,154.72,1.29240659]
[1724768379045,16.1461,154.84,154.72,1.29240659]
[1724768379461,6.4583,154.84,154.72,33.47184493]
[1724768379663,32.17943834,154.84,154.73,65.0]
[1724768379872,292.07943834,154.87,154.71,15.7879]
[1724768379873,6.4632,154.72,154.71,15.7879]
[1724768380046,32.17943834,154.76,154.71,15.7879]
[1724768380473,32.17943834,154.76,154.7,6.1457]
[1724768380674,48.33163834,154.78,154.7,6.1457]
[1724768381060,45.0,154.77,154.7,6.1457]
[1724768381662,6.462,154.75,154.7,6.1457]
[1724768382485,6.4624,154.74,154.7,6.1457]
[1724768382872,6.4619,154.76,154.7,6.1457]
[1724768383077,6.4625,154.74,154.7,6.1457]
[1724768383387,6.4619,154.76,154.7,6.1457]
[1724768384471,6.462,154.75,154.7,6.1457]
[1724768385191,6.4617,154.76,154.7,6.1457]
[1724768385888,6.4625,154.74,154.7,6.1457]
[1724768386088,6.463,154.73,154.7,6.1457]
[1724768386264,32.17943834,154.73,154.67,16.2975]
[1724768386465,38.64263834,154.73,154.67,16.2975]
[1724768386664,6.4632,154.72,154.67,16.2975]
[1724768387075,6.4637,154.71,154.67,16.2975]
[1724768388180,6.4632,154.73,154.67,16.2975]
[1724768389365,6.4633,154.72,154.67,16.2975]
[1724768389782,6.4641,154.7,154.67,16.2975]
[1724768390290,6.4641,154.7,154.66,6.2309]
[1724768390589,16.1542,154.76,154.66,6.2309]
[1724768390590,6.4645,154.69,154.66,6.2309]
[1724768392093,6.4645,154.69,154.63,16.1214]
[1724768392590,6.4642,154.7,154.63,16.1214]
[1724768392887,6.4646,154.69,154.63,16.1214]
[1724768394191,6.4642,154.7,154.64,1.29327274]
[1724768394693,32.17943834,154.73,154.64,1.29327274]
[1724768394868,6.4637,154.71,154.64,1.29327274]
[1724768395065,32.17943834,154.72,154.62,1.29300628]
[1724768395282,32.17943834,154.72,154.61,6.0149]
[1724768395283,6.4645,154.69,154.61,6.0149]
[1724768395683,6.4645,154.69,154.62,45.0]
[1724768395883,6.4652,154.68,154.61,6.0149]
[1724768396087,6.4657,154.67,154.61,6.0149]
[1724768397698,6.4649,154.69,154.62,1.29331664]
[1724768397991,6.4651,154.68,154.62,1.29331664]
[1724768398187,6.4651,154.68,154.61,6.0149]
[1724768398377,6.4653,154.67,154.61,6.0149]
[1724768398569,6.4658,154.66,154.61,6.0149]
[1724768398970,6.4662,154.65,154.61,6.0149]
[1724768399779,6.4667,154.64,154.61,6.0149]
[1724768400387,32.17943834,154.62,154.57,6.6352]
[1724768400597,6.4684,154.6,154.57,6.6352]
[1724768400893,32.17943834,154.64,154.57,6.6352]
[1724768401375,32.17943834,154.62,154.57,6.6352]
[1724768401892,6.4687,154.59,154.57,6.6352]
[1724768402872,6.4683,154.6,154.57,6.6352]
[1724768403378,16.1672,154.64,154.57,6.6352]
[1724768403379,32.17943834,154.64,154.57,6.6352]
[1724768403578,6.4669,154.64,154.57,6.6352]
[1724768403790,32.17943834,154.67,154.58,1.29362827]
[1724768404000,6.4662,154.65,154.57,6.6352]
[1724768404501,6.4658,154.66,154.58,1.29354055]
[1724768404705,6.4654,154.67,154.58,66.29354055]
[1724768405004,32.17943834,154.67,154.57,7.92865887]
[1724768405169,6.4662,154.65,154.58,1.29355199]
[1724768405366,32.17943834,154.67,154.57,6.6352]
[1724768406175,45.0,154.66,154.57,6.6352]
[1724768406501,6.4671,154.63,154.57,6.6352]
[1724768407101,32.17943834,154.65,154.57,6.6352]
[1724768407300,16.1642,154.67,154.57,6.6352]
[1724768407301,6.4679,154.61,154.57,6.6352]
[1724768408776,38.64683834,154.63,154.57,6.6352]
[1724768408976,6.4674,154.63,154.57,6.6352]
[1724768409177,414.37943834,154.69,154.58,1.29378689]
[1724768409401,6.4659,154.66,154.58,1.29378689]
[1724768409608,6.4659,154.66,154.58,46.29378689]
[1724768409901,6.4662,154.65,154.58,46.29346144]
[1724768410096,6.4662,154.65,154.58,1.29346144]
[1724768410896,6.4663,154.65,154.57,6.6352]
[1724768411099,32.17943834,154.63,154.57,6.6352]
[1724768411275,32.17943834,154.61,154.57,6.6352]
[1724768411480,6.4683,154.6,154.57,6.6352]
[1724768411902,32.17943834,154.59,154.54,16.2133]
[1724768412110,6.4691,154.58,154.52,6.2779]
[1724768412684,6.4687,154.59,154.52,6.2779]
[1724768413873,6.4692,154.58,154.52,6.2779]
[1724768414077,6.4696,154.57,154.52,6.2779]
[1724768414310,32.17943834,154.59,154.52,6.2779]
[1724768414690,6.4697,154.57,154.52,6.2779]
[1724768414884,32.17943834,154.59,154.52,6.2779]
[1724768415102,32.17943834,154.61,154.52,6.2779]
[1724768415288,32.17943834,154.57,154.52,6.2779]
[1724768415488,6.4703,154.56,154.52,6.2779]
[1724768415676,6.4704,154.55,154.52,6.2779]
[1724768416294,6.4708,154.54,154.52,6.2779]
[1724768416504,6.4708,154.54,154.51,0.843649]
[1724768416882,6.4703,154.56,154.51,0.843649]
[1724768417081,382.2,154.59,154.52,1.29451771]
[1724768417284,382.2,154.59,154.51,0.843649]
[1724768417706,382.2,154.59,154.51,45.843649]
[1724768417889,382.2,154.59,154.52,1.29402451]
[1724768419732,388.6688,154.59,154.51,2.13772584]
[1724768419897,6.4693,154.58,154.51,0.843649]
[1724768421592,6.4695,154.57,154.51,0.843649]
[1724768422325,32.17943834,154.57,154.51,0.843649]
[1724768422709,32.17943834,154.55,154.51,0.843649]
[1724768423101,6.4696,154.57,154.51,0.843649]
[1724768423316,32.17943834,154.53,154.51,0.843649]
[1724768423523,15.8439,154.58,154.51,0.843649]
[1724768423728,6.4704,154.55,154.51,0.843649]
[1724768423906,38.64903834,154.57,154.51,0.843649]
[1724768424112,6.4695,154.57,154.51,0.843649]
[1724768424829,32.17943834,154.55,154.51,0.843649]
[1724768425026,6.01002006,154.61,154.51,0.843649]
[1724768425196,6.4701,154.56,154.51,0.843649]
[1724768425400,6.4695,154.57,154.51,0.843649]
[1724768425620,382.2,154.64,154.52,54.55943834]
[1724768425900,32.17943834,154.63,154.52,23.67429192]
[1724768426206,382.2,154.64,154.53,46.29400976]
[1724768426402,414.37943834,154.64,154.53,46.29400976]
[1724768426728,388.6667,154.64,154.53,46.29400976]
[1724768427499,6.4667,154.64,154.54,32.17943834]
[1724768427700,6.4667,154.64,154.55,46.2936801]
[1724768427910,6.4667,154.64,154.55,45.0]
[1724768428499,12.54319175,154.68,154.56,22.2701]
[1724768428698,6.4642,154.7,154.57,78.47292949]
[1724768428907,6.4662,154.65,154.57,78.47292949]
[1724768429109,6.4656,154.67,154.57,1.29349115]
[1724768429322,32.17943834,154.69,154.57,46.29349115]
[1724768429528,382.2,154.72,154.6,32.17943834]
[1724768429737,382.2,154.72,154.62,6.3084]
[1724768429939,382.2,154.72,154.63,1.29318977]
[1724768430098,32.17943834,154.75,154.63,1.29318977]
[1724768430099,6.4627,154.74,154.63,1.29318977]
[1724768430402,6.4627,154.74,154.63,46.29318977]
[1724768430609,6.4629,154.73,154.63,46.29318977]
[1724768430923,6.4629,154.73,154.63,45.0]
[1724768431240,6.4629,154.73,154.64,1.29304858]
[1724768431740,6.4629,154.73,154.63,45.0]
[1724768432829,32.17943834,154.73,154.63,45.0]
[1724768433034,6.4636,154.72,154.63,45.0]
[1724768433240,6.4638,154.71,154.63,45.0]
[1724768433534,6.4647,154.69,154.62,6.3084]
[1724768433704,6.465,154.68,154.62,6.3084]
[1724768434832,6.4653,154.68,154.62,6.3084]
[1724768435141,32.17943834,154.71,154.62,6.3084]
[1724768435305,32.17943834,154.73,154.63,1.29336523]
[1724768435505,32.17943834,154.73,154.62,6.3084]
[1724768435506,32.17943834,154.73,154.62,7.60176523]
[1724768435799,6.4641,154.7,154.62,7.6016339]
[1724768436536,6.4646,154.69,154.62,6.3084]
[1724768437415,6.4654,154.67,154.62,6.3084]
[1724768437600,32.17943834,154.71,154.62,7.60185274]
[1724768437931,32.17943834,154.71,154.62,6.3084]
[1724768438107,6.4649,154.69,154.62,7.60166202]
[1724768438425,6.465,154.68,154.62,6.3084]
[1724768438809,6.465,154.68,154.62,7.60178803]
[1724768439017,6.4645,154.69,154.62,7.60178803]
[1724768439213,6.464,154.71,154.62,7.60178803]
[1724768439711,6.464,154.71,154.63,45.0]
[1724768439910,6.464,154.71,154.64,1.29312683]
[1724768440106,6.464,154.71,154.65,1.29305068]
[1724768440601,6.4646,154.69,154.62,6.3084]
[1724768440807,6.4646,154.69,154.62,7.60158426]
[1724768441424,6.4668,154.64,154.62,6.3084]
[1724768441632,6.4662,154.65,154.62,6.3084]
[1724768442128,48.34113834,154.69,154.62,6.3084]
[1724768442323,6.467,154.63,154.62,6.3084]
[1724768442639,6.4667,154.64,154.62,6.3084]
[1724768442804,6.4662,154.66,154.62,6.3084]
[1724768443843,5.9591862,154.73,154.62,38.48783834]
[1724768444131,689.84173834,154.77,154.63,1.2931688]
[1724768444338,6.4633,154.72,154.63,66.2931688]
[1724768445033,6.4629,154.73,154.63,66.2931688]
[1724768445408,6.4633,154.72,154.63,66.2931688]
[1724768445832,6.4633,154.72,154.63,46.2931688]
[1724768446839,32.17943834,154.71,154.62,6.3084]
[1724768447023,77.17943834,154.7,154.62,6.3084]
[1724768447336,32.17943834,154.72,154.62,7.60184568]
[1724768447637,6.4637,154.71,154.62,7.60184568]
[1724768448211,6.4633,154.72,154.62,39.78128402]
[1724768448637,6.4633,154.72,154.63,45.0]
[1724768448838,6.4638,154.71,154.63,1.29311682]
[1724768449045,6.4642,154.7,154.62,7.60151682]
[1724768449236,6.4645,154.69,154.62,7.60151682]
[1724768449433,6.4641,154.7,154.62,7.60151682]
[1724768450034,22.9179309,154.76,154.62,6.3084]
[1724768450220,6.4627,154.74,154.63,33.47274694]
[1724768450727,6.4627,154.74,154.64,45.0]
[1724768450922,6.4627,154.74,154.65,1.29293462]
[1724768451120,642.1,154.77,154.65,1.29293462]
[1724768451344,6.462,154.75,154.66,21.8626]
[1724768451515,6.462,154.75,154.67,46.29283359]
[1724768453333,382.2,154.77,154.66,21.8626]
[1724768453334,6.4624,154.74,154.66,21.8626]
[1724768453545,32.17943834,154.75,154.66,21.8626]
[1724768454238,6.4629,154.73,154.66,21.8626]
[1724768454740,6.4623,154.75,154.66,21.8626]
[1724768455421,6.4623,154.75,154.67,1.29298393]
[1724768455614,388.6613,154.77,154.67,1.29298393]
[1724768455816,6.4604,154.79,154.67,33.47242227]
[1724768456029,6.4604,154.79,154.69,6.3105]